fUST/lending_fUST_20240928
["ID","MTS","AMOUNT","RATE_DAILY","PERIOD"]
[339375029,1727508713919,-1022.64,0.00041917,120]
[339375030,1727508713929,-1092.5,0.00041917,120]
[339375031,1727508713938,-7083.29,0.00041917,120]
[339375032,1727508713949,-1583.64,0.00041917,120]
[339375033,1727508713960,-4617.35,0.00041917,120]
[339375034,1727508713970,-2658.87,0.00041917,120]
[339375035,1727508713980,-1301.8,0.00041917,120]
[339375036,1727508713990,-856.09,0.00041917,120]
[339375037,1727508714001,-1037.99,0.00041917,120]
[339375038,1727508714011,-500.0,0.00041917,18]
[339375039,1727508714021,-833.36,0.00041917,120]
[339375040,1727508714030,-1793.53,0.00041917,90]
[339375041,1727508714040,-200.0,0.00041991,3]
[339375042,1727508714050,-1000.0,0.00042,120]
[339375043,1727508714060,-226168.09395109,0.00042,30]
[339375044,1727508714071,-615.418663,0.00042,120]
[339375045,1727508714082,-615.418663,0.00042,120]
[339375046,1727508714094,-615.418663,0.00042,120]
[339375047,1727508714106,-615.418663,0.00042,120]
[339375048,1727508714124,-615.418663,0.00042,120]
[339375049,1727508714135,-615.418663,0.00042,120]
[339375050,1727508714144,-615.418663,0.00042,120]
[339375051,1727508714153,-615.418663,0.00042,120]
[339375052,1727508714162,-200.0,0.00042,120]
[339375053,1727508714171,-500.0,0.00042,120]
[339375054,1727508714180,-160.0,0.00042,7]
[339375055,1727508714189,-269.20830717,0.00042,120]
[339375056,1727508714198,-250.0,0.00042,30]
[339375057,1727508714207,-1000.0,0.00042,120]
[339375058,1727508714216,-582.0,0.00042,120]
[339375059,1727508714225,-1039.0,0.00042,120]
[339375060,1727508714235,-1295830.12177364,0.00042,30]
[339375061,1727508714244,-157.82175623,0.00042,120]
[339375062,1727508714253,-249.98177891,0.00042,120]
[339375063,1727508714262,-501.33876198,0.00042,30]
[339375064,1727508714271,-200.0,0.00042,3]
[339375065,1727508714280,-500.0,0.00042,30]
[339375066,1727508714290,-700.0,0.00042,15]
[339375067,1727508714300,-250.175095,0.00042,30]
[339375068,1727508714310,-152.0,0.00042,31]
[339375069,1727508714321,-151.0,0.00042055,120]
[339375070,1727508714332,-745.54,0.00042191,120]
[339375071,1727508714343,-500.0,0.00042191,120]
[339375072,1727508714355,-538.45,0.00042191,120]
[339375073,1727508714365,-500.0,0.00042191,120]
[339375074,1727508714375,-500.0,0.00042191,120]
[339375075,1727508714385,-1022.64,0.00042191,120]
[339375076,1727508714394,-1092.5,0.00042191,120]
[339375077,1727508714404,-7083.29,0.00042191,120]
[339375078,1727508714414,-1583.64,0.00042191,120]
[339375079,1727508714423,-4617.35,0.00042191,120]
[339375080,1727508714435,-2658.87,0.00042191,120]
[339375081,1727508714446,-1301.8,0.00042191,120]
[339375082,1727508714457,-856.09,0.00042191,120]
[339375083,1727508714466,-1037.99,0.00042191,120]
[339375084,1727508714476,-500.0,0.00042191,18]
[339375085,1727508714486,-833.36,0.00042191,120]
[339375086,1727508714496,-1793.53,0.00042191,90]
[339375087,1727508714507,-16232.19717931,0.000422,120]
[339375088,1727508714519,-1696.91782248,0.000424,120]
[339375089,1727508714528,-18218.63,0.000424,14]
[339375090,1727508714539,-756.75018605,0.00042465,40]
[339375091,1727508714549,-745.54,0.00042465,120]
[339375092,1727508714559,-500.0,0.00042465,120]
[339375093,1727508714569,-538.45,0.00042465,120]
[339375094,1727508714585,-500.0,0.00042465,120]
[339375095,1727508714594,-500.0,0.00042465,120]
[339375096,1727508714607,-1022.64,0.00042465,120]
[339375097,1727508714617,-1092.5,0.00042465,120]
[339375098,1727508714627,-7083.29,0.00042465,120]
[339375099,1727508714638,-1583.64,0.00042465,120]
[339375100,1727508714647,-4617.35,0.00042465,120]
[339375101,1727508714658,-2658.87,0.00042465,120]
[339375102,1727508714668,-1301.8,0.00042465,120]
[339375103,1727508714677,-856.09,0.00042465,120]
[339375104,1727508714687,-1037.99,0.00042465,120]
[339375105,1727508714697,-500.0,0.00042465,18]
[339375106,1727508714708,-833.36,0.00042465,120]
[339375107,1727508714719,-1793.53,0.00042465,90]
[339375108,1727508714728,-151.0,0.00042575,120]
[339375109,1727508714738,-800.36133101,0.00042665,10]
[339375110,1727508714750,-2556.0,0.00042687,60]
[339375111,1727508714760,-745.54,0.00042739,120]
[339375112,1727508714771,-500.0,0.00042739,120]
[339375113,1727508714781,-538.45,0.00042739,120]
[339375114,1727508714791,-500.0,0.00042739,120]
[339375115,1727508714802,-500.0,0.00042739,120]
[339375116,1727508714812,-999.0,0.00042739,120]
[339375117,1727508714822,-1022.64,0.00042739,120]
[339375118,1727508714833,-1092.5,0.00042739,120]
[339375119,1727508714842,-7083.29,0.00042739,120]
[339375120,1727508714853,-1583.64,0.00042739,120]
[339375121,1727508714863,-4617.35,0.00042739,120]
[339375122,1727508714874,-2658.87,0.00042739,120]
[339375123,1727508714886,-1301.8,0.00042739,120]
[339375124,1727508714895,-856.09,0.00042739,120]
[339375125,1727508714904,-1037.99,0.00042739,120]
[339375126,1727508714917,-218.70574496,0.00042739,18]
[339375127,1727508714929,-833.36,0.00042739,120]
[339375128,1727508714939,-1793.53,0.00042739,90]
[339375129,1727508714949,-2000.0,0.00043,43]
[339375130,1727508714959,-1000.0,0.00043,120]
[339375131,1727508714969,-2000.0,0.00043,7]
[339375132,1727508714981,-745.54,0.00043013,120]
[339375133,1727508714991,-500.0,0.00043013,120]
[339375134,1727508715003,-538.45,0.00043013,120]
[339375135,1727508715013,-500.0,0.00043013,120]
[339375136,1727508715023,-500.0,0.00043013,120]
[339375137,1727508715032,-1022.64,0.00043013,120]
[339375138,1727508715042,-1092.5,0.00043013,120]
[339375139,1727508715216,-7083.29,0.00043013,120]
[339375140,1727508715227,-1583.64,0.00043013,120]
[339375141,1727508715238,-4617.35,0.00043013,120]
[339375142,1727508715249,-2658.87,0.00043013,120]
[339375143,1727508715260,-1301.8,0.00043013,120]
[339375144,1727508715271,-856.09,0.00043013,120]
[339375145,1727508715282,-1037.99,0.00043013,120]
[339375146,1727508715294,-833.36,0.00043013,120]
[339375147,1727508715305,-1793.53,0.00043013,90]
[339375148,1727508715315,-500.0,0.00043096,30]
[339375149,1727508715324,-150.0,0.00043105,2]
[339375150,1727508715335,-525.0,0.00043105,2]
[339375151,1727508715346,-1217.0,0.00043105,2]
[339375152,1727508715357,-745.54,0.00043287,120]
[339375153,1727508715367,-500.0,0.00043287,120]
[339375154,1727508715378,-538.45,0.00043287,120]
[339375155,1727508715387,-500.0,0.00043287,120]
[339375156,1727508715397,-500.0,0.00043287,120]
[339375157,1727508715407,-1022.64,0.00043287,120]
[339375158,1727508715419,-1092.5,0.00043287,120]
[339375159,1727508715429,-7083.29,0.00043287,120]
[339375160,1727508715441,-1583.64,0.00043287,120]
[339375161,1727508715452,-4617.35,0.00043287,120]
[339375162,1727508715463,-2658.87,0.00043287,120]
[339375163,1727508715473,-1301.8,0.00043287,120]
[339375164,1727508715484,-856.09,0.00043287,120]
[339375165,1727508715494,-1037.99,0.00043287,120]
[339375166,1727508715505,-833.36,0.00043287,120]
[339375167,1727508715515,-1793.53,0.00043287,90]
[339375168,1727508715524,-2399.88,0.000433,14]
[339375169,1727508715534,-1192.55,0.000433,14]
[339375170,1727508715545,-745.54,0.00043561,120]
[339375171,1727508715555,-505.40156319,0.00043561,120]
[339375172,1727508715565,-538.45,0.00043561,120]
[339375173,1727508715575,-500.0,0.00043561,120]
[339375174,1727508715587,-500.0,0.00043561,120]
[339375175,1727508715596,-1022.64,0.00043561,120]
[339375176,1727508715608,-1092.5,0.00043561,120]
[339375177,1727508715618,-7083.29,0.00043561,120]
[339375178,1727508715627,-1583.64,0.00043561,120]
[339375179,1727508715637,-4617.35,0.00043561,120]
[339375180,1727508715646,-2658.87,0.00043561,120]
[339375181,1727508715659,-1301.8,0.00043561,120]
[339375182,1727508715669,-856.09,0.00043561,120]
[339375183,1727508715679,-1037.99,0.00043561,120]
[339375184,1727508715688,-833.36,0.00043561,120]
[339375185,1727508715699,-1793.53,0.00043561,90]
[339375186,1727508715708,-500.0,0.00043835,120]
[339375187,1727508715718,-500.0,0.00043835,120]
[339375188,1727508715728,-500.0,0.00043835,120]
[339375189,1727508715737,-500.0,0.00043835,120]
[339375190,1727508715747,-500.0,0.00043835,120]
[339375191,1727508715757,-500.0,0.00043835,120]
[339375192,1727508715767,-498.83453245,0.00043835,120]
[339375193,1727508715777,-745.54,0.00043835,120]
[339375194,1727508715786,-538.45,0.00043835,120]
[339375195,1727508715796,-500.0,0.00043835,120]
[339375196,1727508715805,-500.0,0.00043835,120]
[339375197,1727508715815,-999.0,0.00043835,120]
[339375198,1727508715824,-1022.64,0.00043835,120]
[339375199,1727508715834,-1092.5,0.00043835,120]
[339375200,1727508715843,-7083.29,0.00043835,120]
[339375201,1727508715853,-1583.64,0.00043835,120]
[339375202,1727508715863,-4617.35,0.00043835,120]
[339375203,1727508715872,-2658.87,0.00043835,120]
[339375204,1727508715882,-1301.8,0.00043835,120]
[339375205,1727508715891,-856.09,0.00043835,120]
[339375206,1727508715900,-1037.99,0.00043835,120]
[339375207,1727508715910,-833.36,0.00043835,120]
[339375208,1727508715919,-404.83694415,0.000439,120]
[339375209,1727508715928,-151.0,0.00043973,120]
[339375210,1727508715937,-2000.0,0.00044,44]
[339375211,1727508715947,-1000.0,0.00044,120]
[339375212,1727508715957,-5040.91671243,0.00044,120]
[339375213,1727508715966,-1299.0,0.00044,30]
[339375214,1727508715975,-250.0,0.00044,30]
[339375215,1727508715985,-745.54,0.00044109,120]
[339375216,1727508715995,-538.45,0.00044109,120]
[339375217,1727508716005,-489.4900757,0.00044109,120]
[339375218,1727508716014,-492.42963941,0.00044109,120]
[339375219,1727508716023,-1022.64,0.00044109,120]
[339375220,1727508716035,-1092.5,0.00044109,120]
[339375221,1727508716045,-7083.29,0.00044109,120]
[339375222,1727508716057,-1583.64,0.00044109,120]
[339375223,1727508716067,-4617.35,0.00044109,120]
[339375224,1727508716079,-2658.87,0.00044109,120]
[339375225,1727508716089,-1301.8,0.00044109,120]
[339375226,1727508716101,-856.09,0.00044109,120]
[339375227,1727508716110,-1037.99,0.00044109,120]
[339375228,1727508716120,-833.36,0.00044109,120]
[339375229,1727508716129,-827.22674085,0.00044127,28]
[339375230,1727508716139,-500.0,0.00044192,30]
[339375231,1727508716149,-745.54,0.00044383,120]
[339375232,1727508716159,-538.45,0.00044383,120]
[339375233,1727508716169,-1022.64,0.00044383,120]
[339375234,1727508716178,-1092.5,0.00044383,120]
[339375235,1727508716187,-7083.29,0.00044383,120]
[339375236,1727508716198,-1583.64,0.00044383,120]
[339375237,1727508716207,-4617.35,0.00044383,120]
[339375238,1727508716217,-2658.87,0.00044383,120]
[339375239,1727508716228,-1301.8,0.00044383,120]
[339375240,1727508716238,-856.09,0.00044383,120]
[339375241,1727508716251,-1037.99,0.00044383,120]
[339375242,1727508716263,-833.36,0.00044383,120]
[339375243,1727508716274,-500000.0,0.0004444,30]
[339375244,1727508716285,-615.418663,0.0004444,120]
[339375245,1727508716296,-615.418663,0.0004444,120]
[339375246,1727508716307,-151.0,0.00044466,120]
[339375247,1727508716318,-18218.63,0.000445,30]
[339375248,1727508716330,-745.65499277,0.00044657,120]
[339375249,1727508716339,-538.47464224,0.00044657,120]
[339375250,1727508716351,-1022.6869926,0.00044657,120]
[339375251,1727508716361,-1092.6999586,0.00044657,120]
[339375252,1727508716370,-7083.33000185,0.00044657,120]
[339375253,1727508716381,-1583.8687957,0.00044657,120]
[339375254,1727508716393,-4617.58042526,0.00044657,120]
[339375255,1727508716405,-2659.09953633,0.00044657,120]
[339375256,1727508716415,-1301.9716855,0.00044657,120]
[339375257,1727508716427,-856.18489342,0.00044657,120]
[339375258,1727508716439,-1038.1209265,0.00044657,120]
[339375259,1727508716450,-833.52996926,0.00044657,120]
[339375260,1727508716460,-705.13925027,0.000447,120]
[339375261,1727508716471,-999.0,0.00044931,120]
[339375262,1727508716481,-2000.0,0.00045,45]
[339375263,1727508716491,-1000.0,0.00045,2]
[339375264,1727508716502,-837.52352148,0.00045,20]
[339375265,1727508716513,-500.0,0.00045,120]
[339375266,1727508716524,-2000.0,0.00045,120]
[339375267,1727508716534,-3498.25120628,0.00045,120]
[339375268,1727508716544,-23646.12260589,0.00045,30]
[339375269,1727508716554,-500.0,0.00045,60]
[339375270,1727508716566,-924.66579642,0.00045,40]
[339375271,1727508716577,-506.99098611,0.00045,120]
[339375272,1727508716589,-33362.42719098,0.00045,30]
[339375273,1727508716599,-6994.08167588,0.00045,120]
[339375274,1727508716611,-7460.70779697,0.00045,2]
[339375275,1727508716622,-400.0,0.00045,120]
[339375276,1727508716633,-6315.63226928,0.00045,30]
[339375277,1727508716642,-9501.48593122,0.00045,120]
[339375278,1727508716652,-400.0,0.00045,120]
[339375279,1727508716661,-400.0,0.00045,120]
[339375280,1727508716671,-161.55831357,0.00045,120]
[339375281,1727508716681,-5083.0,0.00045,30]
[339375282,1727508716692,-10800.60343947,0.00045,120]
[339375283,1727508716703,-1000.0,0.000451,60]
[339375284,1727508716712,-500.0,0.00045288,30]
[339375285,1727508716721,-151.0,0.0004537,120]
[339375286,1727508716731,-500000.0,0.0004544,30]
[339375287,1727508716742,-615.418663,0.0004544,120]
[339375288,1727508716753,-615.418663,0.0004544,120]
[339375289,1727508716763,-359.676605,0.00045674,120]
[339375290,1727508716772,-2000.0,0.00046,46]
[339375291,1727508716782,-163.60763272,0.00046,120]
[339375292,1727508716793,-1000.0,0.00046,120]
[339375293,1727508716805,-1000.0,0.00046,60]
[339375294,1727508716814,-31343.30933486,0.00046,120]
[339375295,1727508716824,-33230.62689609,0.00046,30]
[339375296,1727508716835,-250.0,0.00046,30]
[339375297,1727508716845,-999.0,0.00046027,120]
[339375298,1727508716856,-150.0,0.00046105,2]
[339375299,1727508716869,-525.0,0.00046105,2]
[339375300,1727508716879,-1217.0,0.00046105,2]
[339375301,1727508716890,-400.0,0.00046287,2]
[339375302,1727508716899,-500.0,0.00046384,30]
[339375303,1727508716908,-500000.0,0.0004644,30]
[339375304,1727508716918,-615.418663,0.0004644,120]
[339375305,1727508716928,-615.418663,0.0004644,120]
[339375306,1727508716937,-18218.63,0.000465,30]
[339375307,1727508716948,-151.0,0.00046767,120]
[339375308,1727508716959,-151.0,0.00046877,120]
[339375309,1727508716968,-539.42928254,0.0004699,120]
[339375310,1727508716977,-2000.0,0.00047,47]
[339375311,1727508716987,-500.0,0.00047,120]
[339375312,1727508716997,-2892.73994201,0.00047,90]
[339375313,1727508717006,-999.0,0.00047123,120]
[339375314,1727508717016,-13665.05939061,0.00047238,90]
[339375315,1727508717025,-500000.0,0.0004744,30]
[339375316,1727508717036,-615.418663,0.0004744,120]
[339375317,1727508717045,-615.418663,0.0004744,120]
[339375318,1727508717054,-206.0365807,0.0004748,30]
[339375319,1727508717064,-165.47,0.000475,30]
[339375320,1727508717073,-10000.0,0.00047888,120]
[339375321,1727508717082,-1000.0,0.00047999,120]
[339375322,1727508717091,-2000.0,0.00048,48]
[339375323,1727508717100,-1025.65613062,0.00048,120]
[339375324,1727508717110,-1000.0,0.00048,120]
[339375325,1727508717119,-2029.0,0.00048,120]
[339375326,1727508717129,-2000.0,0.00048,120]
[339375327,1727508717138,-101638.0,0.00048,120]
[339375328,1727508717148,-250.0,0.00048,30]
[339375329,1727508717157,-151.0,0.00048164,120]
[339375330,1727508717166,-999.0,0.00048219,120]
[339375331,1727508717175,-1240.04742117,0.00048398,8]
[339375332,1727508717185,-5000.0,0.000484,30]
[339375333,1727508717193,-35149.26464762,0.000488,120]
[339375334,1727508717203,-690.0,0.000488,120]
[339375335,1727508717212,-47675.86273421,0.0004895,120]
[339375336,1727508717221,-2000.0,0.00049,49]
[339375337,1727508717230,-500.0,0.00049,120]
[339375338,1727508717239,-5002.0,0.00049,30]
[339375339,1727508717247,-2100.0,0.00049,120]
[339375340,1727508717257,-148883.44842592,0.00049,120]
[339375341,1727508717266,-2435.0,0.00049,90]
[339375342,1727508717275,-206.35978119,0.00049,10]
[339375343,1727508717283,-612.54293212,0.00049,120]
[339375344,1727508717292,-620.62652395,0.00049,120]
[339375345,1727508717302,-2434.93209753,0.00049,60]
[339375346,1727508717311,-151.0,0.00049288,120]
[339375347,1727508717320,-5839.87160643,0.000493,120]
[339375348,1727508717329,-10000.0,0.000493,120]
[339375349,1727508717337,-18218.63,0.000493,30]
[339375350,1727508717347,-615.418663,0.00049315,120]
[339375351,1727508717358,-615.41866,0.00049315,120]
[339375352,1727508717366,-999.0,0.00049315,120]
[339375353,1727508717376,-500.0,0.00049315,31]
[339375354,1727508717385,-500.0,0.00049315,31]
[339375355,1727508717394,-500.0,0.00049315,31]
[339375356,1727508717403,-500.0,0.00049315,31]
[339375357,1727508717413,-500.0,0.00049315,31]
[339375358,1727508717423,-270.19747989,0.00049315,31]
[339375359,1727508717433,-573151.0,0.0004944,120]
[339375360,1727508717442,-1000.0,0.00049499,120]
[339375361,1727508717451,-151.0,0.00049562,120]
[339375362,1727508717461,-10000.0,0.000499,120]
[339375363,1727508717525,-5305.54162593,0.000499,120]
[339375364,1727508717535,-8000.0,0.0004991,120]
[339375365,1727508717547,-1000.0,0.00049999,120]
[339375366,1727508717557,-447.02997254,0.00049999,120]
[339375367,1727508717566,-395.18763105,0.00049999,31]
[339375368,1727508717576,-500.0,0.00049999,120]
[339375369,1727508717585,-293.56034817,0.00049999,120]
[339375370,1727508717597,-500.0,0.00049999,120]
[339375371,1727508717615,-500.0,0.00049999,120]
[339375372,1727508717625,-500.0,0.00049999,120]
[339375373,1727508717635,-153.17220704,0.00049999,120]
[339375374,1727508717646,-500.0,0.00049999,120]
[339375375,1727508717655,-307.63551667,0.00049999,120]
[339375376,1727508717664,-500.0,0.00049999,120]
[339375377,1727508717674,-500.0,0.00049999,120]
[339375378,1727508717685,-500.0,0.00049999,120]
[339375379,1727508717694,-500.0,0.00049999,120]
[339375380,1727508717703,-500.0,0.00049999,120]
[339375381,1727508717713,-307.79971999,0.00049999,31]
[339375382,1727508717723,-1000.0,0.0005,51]
[339375383,1727508717732,-5050.9423912,0.0005,120]
[339375384,1727508717741,-213.33347713,0.0005,20]
[339375385,1727508717752,-522.04048712,0.0005,10]
[339375386,1727508717761,-520.15003375,0.0005,120]
[339375387,1727508717772,-500.0,0.0005,120]
[339375388,1727508717782,-200.0,0.0005,120]
[339375389,1727508717792,-30068.68695999,0.0005,120]
[339375390,1727508717802,-1000.0,0.0005,120]
[339375391,1727508717812,-642.82862642,0.0005,120]
[339375392,1727508717822,-603.999999,0.0005,120]
[339375393,1727508717831,-3498.25120628,0.0005,120]
[339375394,1727508717841,-2110.0,0.0005,120]
[339375395,1727508717852,-500.0,0.0005,120]
[339375396,1727508717863,-500.0,0.0005,120]
[339375397,1727508717873,-500.0,0.0005,120]
[339375398,1727508717883,-650.0,0.0005,120]
[339375399,1727508717892,-20448.0,0.0005,120]
[339375400,1727508717902,-7000.0,0.0005,120]
[339375401,1727508717912,-1105.00673734,0.0005,120]
[339375402,1727508717922,-386.17329214,0.0005,2]
[339375403,1727508717932,-6720.79548871,0.0005,120]
[339375404,1727508717941,-3599.3931108,0.0005,120]
[339375405,1727508717951,-3000.0,0.0005,40]
[339375406,1727508717961,-6413.59650274,0.0005,120]
[339375407,1727508717971,-250.0,0.0005,30]
[339375408,1727508717982,-500.0,0.000503,60]
[339375409,1727508717992,-999.0,0.0005041,120]
[339375410,1727508718003,-160.0,0.00050571,10]
[339375411,1727508718014,-789.99,0.000508,90]
[339375412,1727508718025,-151.0,0.00050959,120]
[339375413,1727508718036,-1538.972747,0.00051,60]
[339375414,1727508718048,-3000.0,0.00051,85]
[339375415,1727508718059,-3000.0,0.0005101,85]
[339375416,1727508718071,-3000.0,0.0005102,85]
[339375417,1727508718081,-3000.0,0.0005103,85]
[339375418,1727508718091,-3000.0,0.0005104,85]
[339375419,1727508718101,-359.676605,0.00051045,120]
[339375420,1727508718112,-3000.0,0.0005105,85]
[339375421,1727508718122,-3000.0,0.0005106,85]
[339375422,1727508718131,-3000.0,0.0005107,85]
[339375423,1727508718141,-5155.595949,0.0005108,85]
[339375424,1727508718152,-480804.96359938,0.000514,30]
[339375425,1727508718162,-999.0,0.00051506,120]
[339375426,1727508718174,-153.2877866,0.00051507,2]
[339375427,1727508718183,-400.0,0.00051622,2]
[339375428,1727508718192,-151.0,0.00051699,120]
[339375429,1727508718202,-1000.0,0.00051999,120]
[339375430,1727508718213,-500.0,0.00052,120]
[339375431,1727508718223,-151.0,0.00052356,120]
[339375432,1727508718234,-336.01317005,0.00052438,2]
[339375433,1727508718246,-999.0,0.00052602,120]
[339375434,1727508718257,-195.69,0.0005266,120]
[339375435,1727508718269,-2399.88,0.00053,30]
[339375436,1727508718278,-1192.55,0.00053,30]
[339375437,1727508718290,-180.059,0.00053,98]
[339375438,1727508718301,-294.75860768,0.000533,120]
[339375439,1727508718312,-827.22674085,0.00053423,28]
[339375440,1727508718322,-1029.56145372,0.00053698,120]
[339375441,1727508718332,-151.0,0.00053753,120]
[339375442,1727508718343,-427.3053839,0.000538,90]
[339375443,1727508718352,-153.09472021,0.00053904,93]
[339375444,1727508718364,-1065.27709175,0.00054,120]
[339375445,1727508718377,-198.83255074,0.00054,120]
[339375446,1727508718387,-1137.64,0.00054,30]
[339375447,1727508718398,-2248.11,0.00054,30]
[339375448,1727508718409,-151.0,0.0005411,120]
[339375449,1727508718419,-500.0,0.00054794,120]
[339375450,1727508718430,-500.0,0.00054794,120]
[339375451,1727508718442,-500.0,0.00054794,120]
[339375452,1727508718452,-500.0,0.00054794,120]
[339375453,1727508718463,-500.0,0.00054794,120]
[339375454,1727508718474,-500.0,0.00054794,120]
[339375455,1727508718485,-500.0,0.00054794,120]
[339375456,1727508718495,-500.0,0.00054794,120]
[339375457,1727508718506,-500.0,0.00054794,120]
[339375458,1727508718516,-500.0,0.00054794,120]
[339375459,1727508718527,-500.0,0.00054794,120]
[339375460,1727508718539,-500.0,0.00054794,120]
[339375461,1727508718549,-500.0,0.00054794,120]
[339375462,1727508718559,-500.0,0.00054794,120]
[339375463,1727508718569,-500.0,0.00054794,120]
[339375464,1727508718580,-331.74579571,0.00054794,120]
[339375465,1727508718590,-500.0,0.00054795,5]
[339375466,1727508718600,-3520.75276882,0.00054795,120]
[339375467,1727508718610,-3520.75276882,0.00054795,120]
[339375468,1727508718619,-3520.75276882,0.00054795,120]
[339375469,1727508718629,-3520.75276882,0.00054795,120]
[339375470,1727508718639,-3520.75276882,0.00054795,120]
[339375471,1727508718648,-3520.75276882,0.00054795,120]
[339375472,1727508718658,-3520.75276882,0.00054795,120]
[339375473,1727508718669,-3520.75276882,0.00054795,120]
[339375474,1727508718678,-3520.75276882,0.00054795,120]
[339375475,1727508718687,-3520.75276882,0.00054795,120]
[339375476,1727508718696,-3520.75276882,0.00054795,120]
[339375477,1727508718706,-3520.75276882,0.00054795,120]
[339375478,1727508718715,-3520.75276882,0.00054795,120]
[339375479,1727508718725,-3520.75276882,0.00054795,120]
[339375480,1727508718734,-3520.75276882,0.00054795,120]
[339375481,1727508718744,-3520.75276882,0.00054795,120]
[339375482,1727508718753,-3520.75276882,0.00054795,120]
[339375483,1727508718763,-3520.75276882,0.00054795,120]
[339375484,1727508718774,-3520.75276882,0.00054795,120]
[339375485,1727508718784,-3520.75276882,0.00054795,120]
[339375486,1727508718794,-3520.75276882,0.00054795,120]
[339375487,1727508718804,-3520.75276882,0.00054795,120]
[339375488,1727508718814,-3520.75276882,0.00054795,120]
[339375489,1727508718824,-3520.75276882,0.00054795,120]
[339375490,1727508718834,-3520.75276882,0.00054795,120]
[339375491,1727508718844,-3520.75276882,0.00054795,120]
[339375492,1727508718854,-3520.75276882,0.00054795,120]
[339375493,1727508718865,-3520.75276882,0.00054795,120]
[339375494,1727508718874,-3520.75276882,0.00054795,120]
[339375495,1727508718884,-3520.75276882,0.00054795,120]
[339375496,1727508718894,-3520.75276882,0.00054795,120]
[339375497,1727508718903,-3520.75276882,0.00054795,120]
[339375498,1727508718913,-3520.75276882,0.00054795,120]
[339375499,1727508718922,-3520.75276882,0.00054795,120]
[339375500,1727508718933,-3520.75276882,0.00054795,120]
[339375501,1727508718942,-3520.75276882,0.00054795,120]
[339375502,1727508718952,-3520.75276882,0.00054795,120]
[339375503,1727508718963,-3520.75276882,0.00054795,120]
[339375504,1727508718973,-3520.75276882,0.00054795,120]
[339375505,1727508718984,-3520.75276882,0.00054795,120]
[339375506,1727508718994,-3520.75276882,0.00054795,120]
[339375507,1727508719004,-3520.75276882,0.00054795,120]
[339375508,1727508719014,-3520.75276882,0.00054795,120]
[339375509,1727508719025,-3520.75276882,0.00054795,120]
[339375510,1727508719034,-3696.79040726,0.00054795,120]
[339375511,1727508719044,-3696.79040726,0.00054795,120]
[339375512,1727508719054,-3696.79040726,0.00054795,120]
[339375513,1727508719067,-3450.33771344,0.00054795,120]
[339375514,1727508719079,-3450.33771344,0.00054795,120]
[339375515,1727508719091,-3450.33771344,0.00054795,120]
[339375516,1727508719101,-3450.33771344,0.00054795,120]
[339375517,1727508719113,-3450.33771344,0.00054795,120]
[339375518,1727508719124,-3450.33771344,0.00054795,120]
[339375519,1727508719134,-3450.33771344,0.00054795,120]
[339375520,1727508719147,-3450.33771344,0.00054795,120]
[339375521,1727508719158,-3696.79040726,0.00054795,120]
[339375522,1727508719169,-3450.33771344,0.00054795,120]
[339375523,1727508719179,-3450.33771344,0.00054795,120]
[339375524,1727508719190,-3450.33771344,0.00054795,120]
[339375525,1727508719200,-3696.79040726,0.00054795,120]
[339375526,1727508719210,-3696.79040726,0.00054795,120]
[339375527,1727508719220,-3696.79040726,0.00054795,120]
[339375528,1727508719231,-3450.33771344,0.00054795,120]